[Event "Romanian Superliga Women 2024"]
[Site "Mamaia"]
[Date "2024.10.03"]
[Round "4.8"]
[White "Moldovan, Maia-Rut"]
[Black "Popovici, Bianca-Andrada-Maria"]
[Result "1-0"]
[ECO "D02"]
[WhiteElo "1778"]
[BlackElo "1533"]
[Annotator "NA RC"]
[PlyCount "187"]
[EventDate "2024.09.26"]
[EventType "team-tourn"]
[EventCountry "ROU"]
[SourceTitle "playchess.com"]
[Source "ChessBase"]
[SourceQuality "1"]
[TimeControl "40/5400+30:1800+30"]

1. d4 {[%emt 0:00:03]} d5 {[%emt 0:00:10]} 2. Bf4 {[%emt 0:00:07]} e6 {[%emt 0:00:08]} 3. e3 {[%emt 0:00:11]} Bd6 {[%emt 0:00:19]} 4. Bg3 {[%emt 0:00:24]} c5 {[%emt 0:00:48]} 5. c3 {[%emt 0:00:41]} Qc7 {[%emt 0:00:41]} 6. Nf3 {[%emt 0:01:07]} Nd7 {[%emt 0:01:38]} 7. Nbd2 {[%emt 0:02:00]} Ngf6 {[%emt 0:01:38]} 8. Bd3 {[%emt 0:15:21]} O-O {[%emt 0:01:37]} 9. Bxd6 {[%emt 0:05:14]} Qxd6 {[%emt 0:00:09]} 10. O-O {[%emt 0:00:20]} e5 {[%emt 0:00:09]} 11. dxe5 {[%emt 0:00:17]} Nxe5 {[%emt 0:00:07]} 12. Nxe5 {[%emt 0:00:23]} Qxe5 {[%emt 0:00:08]} 13. Nf3 {[%emt 0:00:11]} Qe7 {[%emt 0:00:52]} 14. Re1 {[%emt 0:09:04]} Rb8 {[%emt 0:06:47]} 15. a4 {[%emt 0:15:18]} a6 {[%emt 0:04:35]} 16. a5 {[%emt 0:03:06]} Bd7 {[%emt 0:10:06]} 17. Qe2 {[%emt 0:09:06]} Bc6 {[%emt 0:06:55]} 18. Reb1 {[%emt 0:11:00]} Rfe8 {[%emt 0:04:47]} 19. b4 {[%emt 0:02:19]} c4 {[%emt 0:01:54]} 20. Bc2 {[%emt 0:00:39]} Ne4 {[%emt 0:00:43]} 21. Ra3 {[%emt 0:01:14]} Qf6 {[%emt 0:08:43]} 22. Nd4 {[%emt 0:01:49]} Nxc3 {[%emt 0:03:20]} 23. Rxc3 {[%emt 0:08:20]} Qxd4 {[%emt 0:00:08]} 24. Bxh7+ {[%emt 0:00:24]} Kf8 {[%emt 0:00:38]} 25. Qb2 {[%emt 0:03:10]} Qf6 {[%emt 0:06:28]} 26. Bc2 {[%emt 0:02:03]} Qg5 {[%emt 0:04:12]} 27. g3 {[%emt 0:02:28]} Re6 {[%emt 0:09:13]} 28. Ra3 {[%emt 0:01:35]} Rh6 {[%emt 0:01:42]} 29. Qd4 {[%emt 0:00:29]} Qe7 {[%emt 0:05:09]} 30. Bd1 {[%emt 0:01:45]} Re8 {[%emt 0:02:16]} 31. Bf3 {[%emt 0:00:28]} Qe6 {[%emt 0:00:54]} 32. Bg2 {[%emt 0:00:44]} Qd6 {[%emt 0:03:29]} 33. Ra2 {[%emt 0:00:31]} Qe5 {[%emt 0:00:47]} 34. Rd2 {[%emt 0:01:45]} Qxd4 {[%emt 0:03:24]} 35. Rxd4 {[%emt 0:00:10]} Rd6 {[%emt 0:00:14]} 36. e4 {[%emt 0:03:25]} c3 {[%emt 0:00:43]} 37. Rc1 {[%emt 0:00:52]} Red8 {[%emt 0:00:27]} 38. exd5 {[%emt 0:00:43]} Bxd5 {[%emt 0:00:20]} 39. Bxd5 {[%emt 0:00:06]} Rxd5 {[%emt 0:00:08]} 40. Rxd5 {[%emt 0:00:00]} Rxd5 {[%emt 0:00:00]} 41. Rxc3 {[%emt 0:00:12]} Rb5 {[%emt 0:00:15]} 42. Rc4 {[%emt 0:02:51]} Ke7 {[%emt 0:00:22]} 43. Kf1 {[%emt 0:00:44]} Kd6 {[%emt 0:00:10]} 44. Ke2 {[%emt 0:00:21]} Kd5 {[%emt 0:00:13]} 45. Kd3 {[%emt 0:00:18]} g6 {[%emt 0:00:20]} 46. h4 {[%emt 0:01:29]} Ke6 {[%emt 0:00:57]} 47. Re4+ {[%emt 0:04:28]} Kd6 {[%emt 0:02:07]} 48. Rf4 {[%emt 0:09:55]} Ke6 {[%emt 0:04:44]} 49. Kc4 {[%emt 0:07:18]} f6 {[%emt 0:04:53]} 50. Re4+ {[%emt 0:03:40]} Kf7 {[%emt 0:00:19]} 51. f3 {[%emt 0:03:19]} f5 {[%emt 0:04:21]} 52. Rd4 {[%emt 0:01:37]} Ke6 {[%emt 0:00:54]} 53. Rd8 {[%emt 0:00:55]} Ke5 {[%emt 0:01:51]} 54. Rg8 {[%emt 0:00:40]} Kf6 {[%emt 0:04:45]} 55. Re8 {[%emt 0:00:10]} Kf7 {[%emt 0:00:53]} 56. Rc8 {[%emt 0:00:15]} b6 {[%emt 0:02:00]} 57. axb6 {[%emt 0:00:52]} Rxb6 {[%emt 0:00:07]} 58. Rc5 {[%emt 0:00:43]} Ke6 {[%emt 0:00:19]} 59. Ra5 {[%emt 0:00:32]} Kd6 {[%emt 0:01:17]} 60. Rd5+ {[%emt 0:00:25]} Ke6 {[%emt 0:00:32]} 61. g4 {[%emt 0:00:19]} fxg4 {[%emt 0:01:12]} 62. fxg4 {[%emt 0:00:32]} Kf6 {[%emt 0:01:08]} 63. Rc5 {[%emt 0:00:33]} Re6 {[%emt 0:00:33]} 64. Rd5 {[%emt 0:00:38]} Rc6+ {[%emt 0:00:17]} 65. Kd4 {[%emt 0:00:20]} Rb6 {[%emt 0:00:14]} 66. Kc5 {[%emt 0:00:29]} Rb5+ {[%emt 0:00:17]} 67. Kc4 {[%emt 0:00:15]} Rb6 {[%emt 0:00:09]} 68. Kb3 {[%emt 0:00:41]} Ke6 {[%emt 0:01:19]} 69. Rc5 {[%emt 0:00:40]} Kf6 {[%emt 0:01:32]} 70. Rg5 {[%emt 0:00:37]} Re6 {[%emt 0:02:05]} 71. Rd5 {[%emt 0:00:34]} Rb6 {[%emt 0:00:29]} 72. Ka4 {[%emt 0:00:35]} Rc6 {[%emt 0:02:14]} 73. Rc5 {[%emt 0:00:28]} Rb6 {[%emt 0:00:15]} 74. Ka5 {[%emt 0:00:12]} Rd6 {[%emt 0:00:18]} 75. b5 {[%emt 0:00:33]} axb5 {[%emt 0:00:09]} 76. Kxb5 {[%emt 0:00:05]} Rd4 {[%emt 0:00:18]} 77. Rc6+ {[%emt 0:00:24]} Kg7 {[%emt 0:00:06]} 78. Rc4 {[%emt 0:00:30]} Rd5+ {[%emt 0:00:11]} 79. Kc6 {[%emt 0:00:12]} Re5 {[%emt 0:00:05]} 80. Kd6 {[%emt 0:00:48]} Ra5 {[%emt 0:00:17]} 81. Ke6 {[%emt 0:00:18]} Ra6+ {[%emt 0:00:09]} 82. Ke5 {[%emt 0:00:11]} Ra5+ {[%emt 0:00:06]} 83. Kf4 {[%emt 0:00:03]} Rb5 {[%emt 0:00:38]} 84. Rc7+ {[%emt 0:00:25]} Kf8 {[%emt 0:00:12]} 85. Rd7 {[%emt 0:00:45]} Kg8 {[%emt 0:00:27]} 86. Re7 {[%emt 0:00:08]} Ra5 {[%emt 0:00:18]} 87. Re5 {[%emt 0:00:10]} Rxe5 {[%emt 0:00:25]} 88. Kxe5 {[%emt 0:00:05]} Kg7 {[%emt 0:00:05]} 89. Ke6 {[%emt 0:00:17]} Kh6 {[%emt 0:00:16]} 90. Kf7 {[%emt 0:00:15]} g5 {[%emt 0:00:32]} 91. Kf6 {[%emt 0:02:06]} gxh4 {[%emt 0:00:13]} 92. g5+ {[%emt 0:00:04]} Kh5 {[%emt 0:00:14]} 93. g6 {[%emt 0:00:09]} h3 {[%emt 0:00:10]} 94. g7 {[%emt 0:03:33]} 1-0

[Event "Romanian Superliga Women 2024"]
[Site "Mamaia"]
[Date "2024.10.03"]
[Round "4.9"]
[White "Sandu, Mihaela"]
[Black "Raeva, Elitsa"]
[Result "0-1"]
[ECO "B52"]
[WhiteElo "2248"]
[BlackElo "2185"]
[Annotator "RC"]
[PlyCount "96"]
[EventDate "2024.09.26"]
[EventType "team-tourn"]
[EventCountry "ROU"]
[SourceTitle "playchess.com"]
[Source "ChessBase"]
[SourceQuality "1"]
[TimeControl "40/5400+30:1800+30"]

1. e4 {[%emt 0:00:24]} c5 {[%emt 0:00:10]} 2. Nf3 {[%emt 0:00:22]} d6 {[%emt 0:00:12]} 3. Bb5+ {[%emt 0:04:23]} Bd7 {[%emt 0:01:30]} 4. Bxd7+ {[%emt 0:00:08]} Qxd7 {[%emt 0:00:35]} 5. O-O {[%emt 0:00:06]} Nc6 {[%emt 0:00:57]} 6. Re1 {[%emt 0:00:23]} g6 {[%emt 0:04:30]} 7. c3 {[%emt 0:02:13]} Bg7 {[%emt 0:03:43]} 8. d4 {[%emt 0:02:47]} b6 {[%emt 0:03:01]} 9. h3 {[%emt 0:07:05]} Rd8 {[%emt 0:01:56]} 10. Be3 {[%emt 0:05:43]} Nf6 {[%emt 0:01:44]} 11. Nbd2 {[%emt 0:03:10]} O-O {[%emt 0:03:35]} 12. a4 {[%emt 0:05:40]} cxd4 {[%emt 0:06:57]} 13. cxd4 {[%emt 0:03:22]} d5 {[%emt 0:00:47]} 14. e5 {[%emt 0:04:11]} Ne8 {[%emt 0:02:42]} 15. Nb3 {[%emt 0:05:10]} a5 {[%emt 0:00:53]} 16. Nc1 {[%emt 0:00:15]} Nc7 {[%emt 0:01:41]} 17. Nd3 {[%emt 0:00:14]} Ne6 {[%emt 0:00:52]} 18. Rb1 {[%emt 0:03:09]} Rc8 {[%emt 0:02:42]} 19. b4 {[%emt 0:06:07]} axb4 {[%emt 0:04:02]} 20. Qb3 {[%emt 0:00:05]} Nc7 {[%emt 0:20:35]} 21. Bd2 {[%emt 0:04:43]} f6 {[%emt 0:05:37]} 22. Bxb4 {[%emt 0:04:11]} Qf5 {[%emt 0:02:21]} 23. Rbd1 {[%emt 0:07:08]} fxe5 {[%emt 0:06:10]} 24. Ndxe5 {[%emt 0:00:53]} Bxe5 {[%emt 0:03:35]} 25. dxe5 {[%emt 0:00:22]} Ne6 {[%emt 0:00:26]} 26. Bc3 {[%emt 0:01:48]} Nf4 {[%emt 0:01:28]} 27. Re3 {[%emt 0:07:11]} e6 {[%emt 0:01:19]} 28. Qxb6 {[%emt 0:01:58]} Qc2 {[%emt 0:00:55]} 29. Qb1 {[%emt 0:04:15]} Qxa4 {[%emt 0:00:56]} 30. Nd4 {[%emt 0:02:19]} Nxd4 {[%emt 0:01:33]} 31. Rxd4 {[%emt 0:03:09]} Qa6 {[%emt 0:03:59]} 32. Qf1 {[%emt 0:00:33]} Qb6 {[%emt 0:02:16]} 33. Qe1 {[%emt 0:05:03]} Rf7 {[%emt 0:03:04]} 34. Kh2 {[%emt 0:01:07]} Qb5 {[%emt 0:04:21]} 35. Rb4 {[%emt 0:01:57]} Qa6 {[%emt 0:00:21]} 36. Qd2 {[%emt 0:01:29]} Qf1 {[%emt 0:00:51]} 37. f3 {[%emt 0:01:47]} g5 {[%emt 0:02:41]} 38. h4 {[%emt 0:02:41]} h6 {[%emt 0:00:47]} 39. Bb2 {[%emt 0:00:55]} Rg7 {[%emt 0:01:24]} 40. Re1 {[%emt 0:00:00]} Qd3 {[%emt 0:00:00]} 41. Rd1 {[%emt 0:03:00]} Qg6 {[%emt 0:04:01]} 42. Rc1 {[%emt 0:07:21]} Rxc1 {[%emt 0:02:52]} 43. Bxc1 {[%emt 0:00:23]} Qh5 {[%emt 0:06:07]} 44. Rb8+ {[%emt 0:15:55]} Kh7 {[%emt 0:00:22]} 45. Kg1 {[%emt 0:01:56]} Qxh4 {[%emt 0:01:27]} 46. Qc2+ {[%emt 0:01:35]} Ng6 {[%emt 0:00:23]} 47. Ba3 {[%emt 0:01:02]} Qe1+ {[%emt 0:00:27]} 48. Kh2 {[%emt 0:00:03]} Qxe5+ {[%emt 0:00:12]} 0-1

[Event "Romanian Superliga Women 2024"]
[Site "Mamaia"]
[Date "2024.10.03"]
[Round "4.10"]
[White "Pirvulescu, Ekaterina"]
[Black "Radeva, Viktoria"]
[Result "0-1"]
[ECO "B32"]
[WhiteElo "2083"]
[BlackElo "2297"]
[Annotator "RC"]
[PlyCount "134"]
[EventDate "2024.09.26"]
[EventType "team-tourn"]
[EventCountry "ROU"]
[SourceTitle "playchess.com"]
[Source "ChessBase"]
[SourceQuality "1"]
[TimeControl "40/5400+30:1800+30"]

1. e4 {[%emt 0:00:01]} c5 {[%emt 0:00:18]} 2. Nf3 {[%emt 0:00:04]} Nc6 {[%emt 0:00:12]} 3. d4 {[%emt 0:00:10]} cxd4 {[%emt 0:00:05]} 4. Nxd4 {[%emt 0:00:03]} e5 {[%emt 0:00:16]} 5. Nb5 {[%emt 0:00:33]} d6 {[%emt 0:00:11]} 6. N1c3 {[%emt 0:00:52]} a6 {[%emt 0:01:11]} 7. Na3 {[%emt 0:00:06]} Be6 {[%emt 0:02:36]} 8. Nc4 {[%emt 0:06:53]} Rb8 {[%emt 0:00:33]} 9. Nd5 {[%emt 0:04:12]} Bxd5 {[%emt 0:02:32]} 10. exd5 {[%emt 0:01:43]} Nce7 {[%emt 0:00:26]} 11. a4 {[%emt 0:07:38]} Nf6 {[%emt 0:02:42]} 12. Ne3 {[%emt 0:03:37]} g6 {[%emt 0:34:05]} 13. c4 {[%emt 0:02:05]} Bh6 {[%emt 0:06:02]} 14. Be2 {[%emt 0:04:36]} O-O {[%emt 0:04:05]} 15. O-O {[%emt 0:00:55]} a5 {[%emt 0:08:52]} 16. b3 {[%emt 0:15:21]} Ne4 {[%emt 0:02:46]} 17. Bd3 {[%emt 0:11:18]} Nc5 {[%emt 0:01:41]} 18. Bc2 {[%emt 0:00:31]} f5 {[%emt 0:01:29]} 19. Ba3 {[%emt 0:06:26]} b6 {[%emt 0:01:13]} 20. b4 {[%emt 0:01:45]} axb4 {[%emt 0:00:28]} 21. Bxb4 {[%emt 0:00:05]} Bg7 {[%emt 0:03:12]} 22. f4 {[%emt 0:04:25]} exf4 {[%emt 0:03:17]} 23. Rxf4 {[%emt 0:00:02]} Nc8 {[%emt 0:04:38]} 24. Rb1 {[%emt 0:03:09]} Be5 {[%emt 0:01:10]} 25. Rf3 {[%emt 0:02:07]} Qh4 {[%emt 0:02:08]} 26. Rh3 {[%emt 0:05:18]} Qg5 {[%emt 0:01:29]} 27. Kh1 {[%emt 0:03:47]} Ne7 {[%emt 0:08:35]} 28. a5 {[%emt 0:03:27]} bxa5 {[%emt 0:00:48]} 29. Bxc5 {[%emt 0:02:57]} Rxb1 {[%emt 0:01:25]} 30. Bxb1 {[%emt 0:00:30]} dxc5 {[%emt 0:00:08]} 31. d6 {[%emt 0:00:35]} Rd8 {[%emt 0:00:30]} 32. d7 {[%emt 0:06:21]} Bd4 {[%emt 0:01:04]} 33. Rg3 {[%emt 0:03:40]} Qf4 {[%emt 0:01:17]} 34. Rf3 {[%emt 0:01:08]} Qe5 {[%emt 0:00:43]} 35. Nf1 {[%emt 0:00:55]} Rxd7 {[%emt 0:00:37]} 36. Qa4 {[%emt 0:00:14]} Qc7 {[%emt 0:01:27]} 37. Bc2 {[%emt 0:00:28]} Nc6 {[%emt 0:00:25]} 38. Qb5 {[%emt 0:00:52]} Ne5 {[%emt 0:00:17]} 39. Ra3 {[%emt 0:00:26]} Ng4 {[%emt 0:02:09]} 40. Qxa5 {[%emt 0:00:00]} Qxa5 {[%emt 0:00:00]} 41. Rxa5 {[%emt 0:00:36]} Re7 {[%emt 0:04:02]} 42. h3 {[%emt 0:20:10]} Re1 {[%emt 0:02:39]} 43. hxg4 {[%emt 0:00:43]} Rxf1+ {[%emt 0:00:08]} 44. Kh2 {[%emt 0:00:03]} Be5+ {[%emt 0:00:06]} 45. g3 {[%emt 0:00:39]} Rf2+ {[%emt 0:00:04]} 46. Kh3 {[%emt 0:00:47]} Rxc2 {[%emt 0:00:31]} 47. Rxc5 {[%emt 0:00:47]} fxg4+ {[%emt 0:00:25]} 48. Kxg4 {[%emt 0:00:05]} Bd6 {[%emt 0:01:10]} 49. Rc6 {[%emt 0:00:46]} Be7 {[%emt 0:00:25]} 50. Kf4 {[%emt 0:01:59]} Kf7 {[%emt 0:00:10]} 51. g4 {[%emt 0:00:24]} Rf2+ {[%emt 0:02:33]} 52. Ke4 {[%emt 0:01:39]} g5 {[%emt 0:02:04]} 53. Kd5 {[%emt 0:00:36]} Rf4 {[%emt 0:01:40]} 54. Rh6 {[%emt 0:00:36]} Kg7 {[%emt 0:03:55]} 55. Re6 {[%emt 0:00:41]} Bf6 {[%emt 0:02:10]} 56. c5 {[%emt 0:01:47]} Kf7 {[%emt 0:00:32]} 57. Ra6 {[%emt 0:01:03]} Rd4+ {[%emt 0:00:10]} 58. Kc6 {[%emt 0:00:10]} Rxg4 {[%emt 0:00:16]} 59. Ra7+ {[%emt 0:01:07]} Ke6 {[%emt 0:19:58]} 60. Rxh7 {[%emt 0:00:28]} Rc4 {[%emt 0:00:00]} 61. Kb5 {[%emt 0:00:38]} Rc2 {[%emt 0:00:00]} 62. c6 {[%emt 0:01:06]} Be5 {[%emt 0:00:00]} 63. Rh6+ {[%emt 0:01:30]} Kf5 {[%emt 0:00:00]} 64. Rh5 {[%emt 0:00:59]} Kg6 {[%emt 0:00:00]} 65. Rh1 {[%emt 0:00:08]} g4 {[%emt 0:00:00]} 66. Re1 {[%emt 0:00:11]} Kf5 {[%emt 0:00:00]} 67. Rf1+ {[%emt 0:00:07]} Bf4 {[%emt 0:00:00]} 0-1

[Event "Romanian Superliga Women 2024"]
[Site "Mamaia"]
[Date "2024.10.03"]
[Round "4.11"]
[White "Dragomirescu, Angela"]
[Black "Iordache, Alexia-Andreea"]
[Result "1/2-1/2"]
[ECO "E60"]
[WhiteElo "2100"]
[BlackElo "2014"]
[Annotator "NA RC"]
[PlyCount "179"]
[EventDate "2024.09.26"]
[EventType "team-tourn"]
[EventCountry "ROU"]
[SourceTitle "playchess.com"]
[Source "ChessBase"]
[SourceQuality "1"]
[TimeControl "40/5400+30:1800+30"]

1. b3 {[%emt 0:00:04]} d6 {[%emt 0:00:22]} 2. d4 {[%emt 0:01:37]} Nf6 {[%emt 0:00:12]} 3. Bb2 {[%emt 0:00:27]} g6 {[%emt 0:00:13]} 4. g3 {[%emt 0:00:50]} Bg7 {[%emt 0:00:07]} 5. Bg2 {[%emt 0:00:05]} O-O {[%emt 0:00:06]} 6. Nf3 {[%emt 0:00:02]} c5 {[%emt 0:02:35]} 7. c4 {[%emt 0:04:11]} Ne4 {[%emt 0:02:34]} 8. Nfd2 {[%emt 0:10:35]} Ng5 {[%emt 0:07:45]} 9. h4 {[%emt 0:20:39]} Ne6 {[%emt 0:00:22]} 10. Nf3 {[%emt 0:00:09]} Nc6 {[%emt 0:01:30]} 11. e3 {[%emt 0:00:19]} cxd4 {[%emt 0:11:06]} 12. exd4 {[%emt 0:00:17]} Qb6 {[%emt 0:00:10]} 13. O-O {[%emt 0:09:33]} Ncxd4 {[%emt 0:01:05]} 14. Nc3 {[%emt 0:05:52]} Nxf3+ {[%emt 0:01:20]} 15. Qxf3 {[%emt 0:00:10]} Qd8 {[%emt 0:02:57]} 16. Rad1 {[%emt 0:01:07]} Rb8 {[%emt 0:03:20]} 17. Rfe1 {[%emt 0:15:26]} b6 {[%emt 0:07:13]} 18. Qe3 {[%emt 0:03:41]} Re8 {[%emt 0:03:42]} 19. Bc1 {[%emt 0:04:43]} Nc7 {[%emt 0:05:03]} 20. h5 {[%emt 0:05:36]} Qd7 {[%emt 0:02:43]} 21. hxg6 {[%emt 0:01:21]} hxg6 {[%emt 0:01:03]} 22. Qd3 {[%emt 0:07:26]} Ba6 {[%emt 0:11:43]} 23. a4 {[%emt 0:03:13]} Rbd8 {[%emt 0:01:43]} 24. Be3 {[%emt 0:00:21]} Qf5 {[%emt 0:06:19]} 25. Be4 {[%emt 0:01:28]} Qf6 {[%emt 0:00:18]} 26. Nb5 {[%emt 0:01:56]} Bxb5 {[%emt 0:05:50]} 27. axb5 {[%emt 0:00:03]} Qc3 {[%emt 0:01:01]} 28. Bc6 {[%emt 0:00:45]} Rf8 {[%emt 0:04:10]} 29. Bg5 {[%emt 0:00:10]} Qxd3 {[%emt 0:00:45]} 30. Rxd3 {[%emt 0:00:03]} f6 {[%emt 0:03:57]} 31. Rxe7 {[%emt 0:02:48]} Rf7 {[%emt 0:03:12]} 32. Rxf7 {[%emt 0:00:27]} Kxf7 {[%emt 0:00:00]} 33. Bf4 {[%emt 0:00:47]} Bf8 {[%emt 0:01:19]} 34. Rd2 {[%emt 0:00:39]} a6 {[%emt 0:01:24]} 35. bxa6 {[%emt 0:00:16]} Nxa6 {[%emt 0:00:01]} 36. Ra2 {[%emt 0:00:09]} Nb4 {[%emt 0:01:05]} 37. Ra7+ {[%emt 0:00:02]} Ke6 {[%emt 0:01:05]} 38. Bf3 {[%emt 0:00:35]} d5 {[%emt 0:04:07]} 39. Bc7 {[%emt 0:00:47]} Rc8 {[%emt 0:00:14]} 40. Rb7 {[%emt 0:00:00]} dxc4 {[%emt 0:00:00]} 41. bxc4 {[%emt 0:02:34]} f5 {[%emt 0:08:45]} 42. Kg2 {[%emt 0:04:09]} Be7 {[%emt 0:03:32]} 43. Bd1 {[%emt 0:15:10]} Nd3 {[%emt 0:09:24]} 44. Be2 {[%emt 0:02:11]} Nc5 {[%emt 0:04:00]} 45. Rxb6+ {[%emt 0:00:29]} Kf7 {[%emt 0:00:39]} 46. Bf4 {[%emt 0:00:42]} Ne4 {[%emt 0:04:45]} 47. Be3 {[%emt 0:04:27]} Ra8 {[%emt 0:04:15]} 48. Bf3 {[%emt 0:01:01]} Rc8 {[%emt 0:00:26]} 49. Be2 {[%emt 0:00:34]} Rc7 {[%emt 0:00:39]} 50. g4 {[%emt 0:01:31]} Rc8 {[%emt 0:02:37]} 51. gxf5 {[%emt 0:00:31]} gxf5 {[%emt 0:00:03]} 52. Bh5+ {[%emt 0:00:35]} Kg7 {[%emt 0:01:48]} 53. Rb7 {[%emt 0:00:18]} Kf6 {[%emt 0:00:16]} 54. Rb6+ {[%emt 0:00:42]} Kg7 {[%emt 0:00:10]} 55. Rg6+ {[%emt 0:02:45]} Kh7 {[%emt 0:00:23]} 56. Re6 {[%emt 0:00:34]} Rg8+ {[%emt 0:00:39]} 57. Kf1 {[%emt 0:00:14]} Bg5 {[%emt 0:00:21]} 58. Ke2 {[%emt 0:01:44]} Bxe3 {[%emt 0:01:49]} 59. Kxe3 {[%emt 0:00:01]} Rg1 {[%emt 0:01:08]} 60. Bf3 {[%emt 0:01:01]} Nc3 {[%emt 0:00:29]} 61. Kd2 {[%emt 0:00:34]} Na4 {[%emt 0:00:20]} 62. Re7+ {[%emt 0:00:30]} Kg6 {[%emt 0:00:14]} 63. Bd5 {[%emt 0:00:17]} Rf1 {[%emt 0:00:40]} 64. f3 {[%emt 0:00:31]} Kg5 {[%emt 0:00:43]} 65. Ra7 {[%emt 0:00:22]} Nb6 {[%emt 0:00:20]} 66. Ke2 {[%emt 0:00:41]} Rc1 {[%emt 0:00:21]} 67. Kd2 {[%emt 0:00:34]} Rf1 {[%emt 0:00:02]} 68. Ke3 {[%emt 0:00:31]} Rc1 {[%emt 0:01:27]} 69. f4+ {[%emt 0:00:15]} Kh4 {[%emt 0:00:24]} 70. Rh7+ {[%emt 0:00:32]} Kg4 {[%emt 0:01:10]} 71. Rg7+ {[%emt 0:00:18]} Kh4 {[%emt 0:00:00]} 72. Kd4 {[%emt 0:00:20]} Rd1+ {[%emt 0:00:20]} 73. Ke5 {[%emt 0:00:12]} Rc1 {[%emt 0:00:07]} 74. Kxf5 {[%emt 0:01:20]} Nxc4 {[%emt 0:00:07]} 75. Bxc4 {[%emt 0:00:30]} Rxc4 {[%emt 0:00:01]} 76. Ke5 {[%emt 0:00:34]} Rc5+ {[%emt 0:00:21]} 77. Ke6 {[%emt 0:00:19]} Rc6+ {[%emt 0:00:19]} 78. Kd5 {[%emt 0:00:23]} Ra6 {[%emt 0:00:48]} 79. f5 {[%emt 0:00:02]} Ra5+ {[%emt 0:00:04]} 80. Ke6 {[%emt 0:00:07]} Ra6+ {[%emt 0:00:02]} 81. Kf7 {[%emt 0:00:24]} Kh5 {[%emt 0:00:52]} 82. f6 {[%emt 0:01:15]} Kh6 {[%emt 0:00:34]} 83. Rg8 {[%emt 0:00:48]} Ra7+ {[%emt 0:00:51]} 84. Ke6 {[%emt 0:00:14]} Ra6+ {[%emt 0:00:07]} 85. Ke5 {[%emt 0:00:18]} Ra5+ {[%emt 0:00:08]} 86. Ke4 {[%emt 0:00:27]} Ra4+ {[%emt 0:00:00]} 87. Ke3 {[%emt 0:01:10]} Ra3+ {[%emt 0:00:01]} 88. Kd4 {[%emt 0:00:17]} Ra4+ {[%emt 0:00:05]} 89. Kd5 {[%emt 0:00:12]} Ra5+ {[%emt 0:00:04]} 90. Ke4 {[%emt 0:01:41]} 1/2-1/2

[Event "Romanian Superliga Women 2024"]
[Site "Mamaia"]
[Date "2024.10.03"]
[Round "4.12"]
[White "Aldea, Maria-Antonia"]
[Black "Maria, Lia-Alexandra"]
[Result "1/2-1/2"]
[ECO "D11"]
[WhiteElo "1826"]
[BlackElo "2001"]
[Annotator "NA RC"]
[PlyCount "136"]
[EventDate "2024.09.26"]
[EventType "team-tourn"]
[EventCountry "ROU"]
[SourceTitle "playchess.com"]
[Source "ChessBase"]
[SourceQuality "1"]
[TimeControl "40/5400+30:1800+30"]

1. Nf3 {[%emt 0:00:03]} d5 {[%emt 0:00:07]} 2. g3 {[%emt 0:00:03]} c6 {[%emt 0:00:07]} 3. Bg2 {[%emt 0:00:03]} Nf6 {[%emt 0:00:10]} 4. O-O {[%emt 0:00:09]} Bf5 {[%emt 0:00:07]} 5. d4 {[%emt 0:03:01]} h6 {[%emt 0:00:22]} 6. c4 {[%emt 0:01:15]} e6 {[%emt 0:01:43]} 7. Nc3 {[%emt 0:01:35]} Bd6 {[%emt 0:08:45]} 8. b3 {[%emt 0:01:55]} Nbd7 {[%emt 0:03:04]} 9. Bb2 {[%emt 0:02:35]} O-O {[%emt 0:00:59]} 10. Nd2 {[%emt 0:05:09]} Qe7 {[%emt 0:25:45]} 11. Qc1 {[%emt 0:09:32]} e5 {[%emt 0:03:19]} 12. dxe5 {[%emt 0:03:32]} Nxe5 {[%emt 0:02:39]} 13. Nd1 {[%emt 0:06:39]} Rfe8 {[%emt 0:13:48]} 14. Ne3 {[%emt 0:03:32]} Bh7 {[%emt 0:02:23]} 15. Nf3 {[%emt 0:04:28]} Rac8 {[%emt 0:09:30]} 16. Nd4 {[%emt 0:04:14]} Qd7 {[%emt 0:01:29]} 17. cxd5 {[%emt 0:04:43]} cxd5 {[%emt 0:02:50]} 18. Qd1 {[%emt 0:00:18]} Bc5 {[%emt 0:02:27]} 19. Rc1 {[%emt 0:06:15]} h5 {[%emt 0:01:11]} 20. h4 {[%emt 0:03:27]} Be4 {[%emt 0:04:04]} 21. f3 {[%emt 0:03:56]} Bh7 {[%emt 0:04:27]} 22. Qd2 {[%emt 0:01:37]} Qe7 {[%emt 0:02:48]} 23. Nec2 {[%emt 0:08:41]} Nc6 {[%emt 0:03:59]} 24. e3 {[%emt 0:04:33]} Bd6 {[%emt 0:01:42]} 25. Kh2 {[%emt 0:03:15]} Ne5 {[%emt 0:02:32]} 26. Bh3 {[%emt 0:03:27]} Nd3 {[%emt 0:01:02]} 27. Bxc8 {[%emt 0:03:08]} Rxc8 {[%emt 0:01:11]} 28. Rb1 {[%emt 0:02:04]} Qc7 {[%emt 0:01:25]} 29. Qg2 {[%emt 0:02:19]} Ne5 {[%emt 0:00:27]} 30. Rbc1 {[%emt 0:00:45]} Neg4+ {[%emt 0:00:34]} 31. fxg4 {[%emt 0:01:31]} Be4 {[%emt 0:00:13]} 32. Nf3 {[%emt 0:01:30]} hxg4 {[%emt 0:00:43]} 33. Bxf6 {[%emt 0:01:14]} gxf3 {[%emt 0:00:34]} 34. Qf2 {[%emt 0:00:19]} gxf6 {[%emt 0:00:29]} 35. Nd4 {[%emt 0:02:23]} Qxc1 {[%emt 0:00:26]} 36. Rxc1 {[%emt 0:00:05]} Rxc1 {[%emt 0:00:03]} 37. Nxf3 {[%emt 0:01:00]} Rc2 {[%emt 0:00:07]} 38. Nd2 {[%emt 0:05:15]} Bb4 {[%emt 0:00:15]} 39. Nxe4 {[%emt 0:00:00]} Rxf2+ 40. Nxf2 {[%emt 0:00:00]} Bc5 {[%emt 0:00:00]} 41. Nd1 {[%emt 0:00:00]} f5 {[%emt 0:03:22]} 42. Kg2 {[%emt 0:00:00]} Kg7 {[%emt 0:02:17]} 43. Kf3 {[%emt 0:00:00]} d4 {[%emt 0:11:56]} 44. exd4 {[%emt 0:01:34]} Bxd4 {[%emt 0:00:05]} 45. Ne3 {[%emt 0:01:22]} Kf6 {[%emt 0:00:18]} 46. a4 {[%emt 0:05:41]} Bc5 {[%emt 0:06:49]} 47. Nc4 {[%emt 0:01:28]} b6 {[%emt 0:05:12]} 48. Kf4 {[%emt 0:01:10]} Bf8 {[%emt 0:00:54]} 49. Ke3 {[%emt 0:09:23]} Ke6 {[%emt 0:01:27]} 50. Kf3 {[%emt 0:02:06]} Bh6 {[%emt 0:01:34]} 51. Na3 {[%emt 0:06:05]} a6 {[%emt 0:02:55]} 52. Nc4 {[%emt 0:01:09]} b5 {[%emt 0:00:13]} 53. axb5 {[%emt 0:00:39]} axb5 {[%emt 0:00:08]} 54. Na3 {[%emt 0:00:46]} b4 {[%emt 0:01:59]} 55. Nc2 {[%emt 0:00:09]} Bf8 {[%emt 0:00:09]} 56. Ke3 {[%emt 0:01:21]} Bc5+ {[%emt 0:00:37]} 57. Kf3 {[%emt 0:02:23]} Ke5 {[%emt 0:00:45]} 58. h5 {[%emt 0:03:01]} Bf8 {[%emt 0:00:28]} 59. h6 {[%emt 0:00:50]} Bxh6 {[%emt 0:00:17]} 60. Nxb4 {[%emt 0:00:05]} Bg5 {[%emt 0:00:46]} 61. Nc2 {[%emt 0:00:42]} f4 {[%emt 0:00:27]} 62. g4 {[%emt 0:00:53]} f5 {[%emt 0:00:11]} 63. gxf5 {[%emt 0:00:44]} Kxf5 {[%emt 0:00:06]} 64. Ne1 {[%emt 0:00:36]} Ke5 {[%emt 0:00:15]} 65. Nc2 {[%emt 0:00:28]} Be7 {[%emt 0:00:11]} 66. Ne1 {[%emt 0:00:10]} Kd4 {[%emt 0:00:14]} 67. Ng2 {[%emt 0:00:01]} Kc3 {[%emt 0:00:08]} 68. Nxf4 {[%emt 0:00:08]} Kxb3 {[%emt 0:00:03]} 1/2-1/2